Cogmind - Beta 9.6 @@@ ROGUE MODE // 2020.09.11 @ 19:34:20 // Winter2019/RPGLIKE Player: Hermelin Result: Destroyed by 8R-AWN with 8R-AWN's Boregun Performance ------------- Evolutions (0) 0 Regions Visited (3) 600 Robots Destroyed (44) 220 Value Destroyed (813) 813 Prototype IDs (38) 760 Alien Tech Used (0) 0 Bonus (349) 349 TOTAL SCORE: 2742 Bonus ------- High Alert Combat Kills 49 Aligned with FarCom 300 Cogmind --------- Core Integrity 0/950 Matter 50/300 Energy 98/100 System Corruption 0% Temperature Cool (0) Movement Treading (160) Location -10/Exiles Parts ------- > --- POWER (1) -------- (None) > --- PROPULSION (2) --- Light Treads Potential Leg > --- UTILITY (4) ------ Heat Sink Experimental Sensor Array > --- WEAPON (2) ------- Assault Rifle Assault Rifle > --- INVENTORY (3) ---- Potential Leg Medium Matter Pod (100) Assault Rifle Peak State ------------ > --- POWER ------------ Light Nuclear Core > --- PROPULSION ------- Light Treads Potential Leg > --- UTILITY ---------- Experimental Sensor Array Improved Terrain Scanner Light Armor Plating Light Armor Plating > --- WEAPON ----------- Assault Rifle Assault Rifle > --- INVENTORY -------- Potential Leg Medium Matter Pod Assault Rifle [Rating: 27] Favorites ----------- Power Ion Engine Engine Ion Engine Power Core Light Nuclear Core Propulsion Light Treads Treads Light Treads Leg Potential Leg Hover Unit Combat Airjet Utility Improved Terrain Scanner Device Improved Terrain Scanner Processor Signal Interpreter Protection Light Armor Plating Weapon Assault Rifle Energy Gun EM Pulse Gun Ballistic Gun Assault Rifle Special Melee Weapon Datajack Build | -11 -10 -10 -10 ------- Run | Scr Mat Min Exi Slots Evolved 5 | 3 2 . . Power . | . . . . Propulsion 1 | 1 . . . Utility 3 | 1 2 . . Weapon 1 | 1 . . . Parts Attached 34 | 8 18 3 5 Power 2 | 1 1 . . Engine 1 | 1 . . . Core 1 | . 1 . . Reactor . | . . . . Propulsion 9 | 3 3 2 1 Treads 3 | 2 . 1 . Leg 1 | . . . 1 Wheel . | . . . . Hover 5 | 1 3 1 . Flight . | . . . . Utility 12 | 2 7 1 2 Device 6 | 2 2 1 1 Storage . | . . . . Processor 1 | . 1 . . Hackware . | . . . . Protection 5 | . 4 . 1 Artifact . | . . . . Weapon 11 | 2 7 . 2 Energy Gun 2 | 1 1 . . Energy Cannon . | . . . . Ballistic Gun 8 | 1 6 . 1 Ballistic Cannon . | . . . . Launcher . | . . . . Special Weapon . | . . . . Impact Weapon . | . . . . Slashing Weapon . | . . . . Piercing Weapon . | . . . . Special Melee Weapon 1 | . . . 1 Unidentified Prototypes 1 | . . 1 . Parts Lost 3 | . . . 3 Power 1 | . . . 1 Propulsion . | . . . . Utility 2 | . . . 2 Weapon . | . . . . Highest Loss Streak 2 | . . . 2 Average Slot Usage (%) 97 | . 95 100 98 Engine 1 | . 6 . . Core 9 | . 6 11 10 Treads 7 | . 2 10 11 Hover 14 | . 22 11 9 Device 19 | . 14 22 22 Processor 1 | . 3 . . Protection 18 | . 13 22 20 Ballistic Gun 21 | . 23 22 18 Special Melee Weapon 1 | . . . 3 Naked Turns . | . . . . Heaviest Build 17 | 10 17 17 17 Greatest Support 40 | 40 28 28 22 Greatest Overweight (x) . | . . . . Average Overweight (x) . | . . . . Largest Inventory Capacity 3 | 2 3 3 3 Average Capacity 2 | 1 2 3 3 Most Carried 3 | 2 3 3 3 Average Carried 2 | 1 2 2 2 Final Capacity 3 | 2 3 3 3 Final Carried 3 | 2 3 3 3 Class Distribution -------------------- 54% | Mutant 19% | Scout 13% | Scavenger-Mutant 12% | Skirmisher Dominant Class ---------------- Scavenger-Mutant | -10/Materials Skirmisher | -10/Mines Scout | -10/Exiles Resources | -11 -10 -10 -10 ----------- Run | Scr Mat Min Exi Matter Collected 935 | 312 453 30 140 Remotely . | . . . . Salvage Created 1270 | 99 1065 . 106 Parts 65 | 6 59 . . Haulers Intercepted 1 | . 1 . . Recyclers Shooed 3 | 1 2 . . Parts Field Recycled . | . . . . Retrieved Matter . | . . . . Parts Self-Destructed . | . . . . Prevented . | . . . . Kills | -11 -10 -10 -10 ------- Run | Scr Mat Min Exi Combat Hostiles Destroyed 38 | 8 23 . 7 Guns 35 | 8 20 . 7 AOE 3 | . 3 . . Classes Destroyed 6 | 2 4 . . Tunneler 2 | 2 . . . Hauler 1 | . 1 . . Watcher 3 | . 3 . . Swarmer 3 | . 3 . . Grunt 20 | . 20 . . Assembled 15 | 8 . . 7 Best Kill Streak 8 | 5 8 . 7 Combat Bots Only 8 | 3 8 . 7 Max Kills in Single Turn 3 | 1 3 . 1 Gunslinging . | . . . . Exploded 3 | . 3 . . Melee . | . . . . Uniques/NPCs Destroyed . | . . . . Combat | -11 -10 -10 -10 -------- Run | Scr Mat Min Exi Damage Taken 2432 | 392 693 . 1347 Core 1758 | 315 483 . 960 Absorbed by Shields . | . . . . Redirected to Core 1504 | 258 437 . 809 Core Remaining (%) 62 | 62 . . . Volleys Fired 160 | 32 75 . 53 Largest 2 | 2 2 . 2 Hottest 60 | 60 60 . 40 Shots Fired 319 | 64 150 . 105 Gun 319 | 64 150 . 105 Cannon . | . . . . Launcher . | . . . . Special . | . . . . Kinetic 274 | 32 137 . 105 Thermal . | . . . . Explosive . | . . . . Electromagnetic 45 | 32 13 . . Robot Hit Streak 29 | 10 16 . 29 Robot Miss Streak 5 | 4 5 . 1 Penetration Max . | . . . . Secondary Targets 4 | 2 2 . . Max Gunslinging Chain 1 | 1 1 . . Shots Hit Robots 218 | 34 96 . 88 Core Hits 91 | 19 52 . 20 Critical Hits 1 | . 1 . . Critical Kills 1 | . 1 . . Critical Parts Destroyed . | . . . . Melee Attacks 4 | . . . 4 Impact . | . . . . Slashing . | . . . . Piercing . | . . . . Sneak Attacks 4 | . . . 4 Combat Hostiles . | . . . . Follow-up Attacks . | . . . . Damage Inflicted 2517 | 281 1193 . 1043 Guns 2384 | 281 1060 . 1043 Cannons . | . . . . Explosions 133 | . 133 . . Melee . | . . . . Ramming . | . . . . Kinetic 2076 | 96 937 . 1043 Thermal 133 | . 133 . . Explosive . | . . . . Electromagnetic 308 | 185 123 . . Impact . | . . . . Slashing . | . . . . Piercing . | . . . . Highest Corruption . | . . . . Average Corruption . | . . . . Corruption Purged . | . . . . Overload Shots . | . . . . Overflow Damage . | . . . . Projectiles . | . . . . Explosions . | . . . . Melee . | . . . . Knockbacks . | . . . . Impact . | . . . . Kinetic . | . . . . Secondary . | . . . . Self-Inflicted Damage 31 | . 31 . . Shots 1 | . 1 . . Rammed . | . . . . Targets Rammed . | . . . . Kicked . | . . . . Crushed . | . . . . Highest Temperature 197 | 100 197 . . Average Temperature 35 | 30 37 . . Received Heat Transfer 454 | 80 294 . 80 Siege Activations . | . . . . Robots Corrupted . | . . . . Combat Hostiles . | . . . . Parts Fried . | . . . . Impact Corruptions . | . . . . Robots Melted . | . . . . Combat Hostiles . | . . . . Parts Melted . | . . . . Heat Transferred 200 | . 200 . . Parts Sabotaged . | . . . . Parts Stolen . | . . . . Parts Stripped . | . . . . Power Chain Reactions 2 | . 2 . . Missiles Intercepted . | . . . . Alert | -11 -10 -10 -10 ------- Run | Scr Mat Min Exi Peak Influence 529 | 5 529 152 . Average Influence 86 | . 338 72 . Maximum Alert Level 2 | . 2 . . Low Security (%) 81 | 100 13 100 . Level 1 14 | . 66 . . Level 2 4 | . 20 . . Level 3 . | . . . . Level 4 . | . . . . Level 5 . | . . . . High Security . | . . . . Max Security . | . . . . Squads Dispatched 4 | . 4 . . Investigation 4 | . 4 . . Extermination . | . . . . Reinforcement . | . . . . Assault . | . . . . Garrison . | . . . . Intercept . | . . . . Construction Impeded . | . . . . Haulers Reinforced . | . . . . Stealth | -11 -10 -10 -10 --------- Run | Scr Mat Min Exi Distress Signals 1 | . 1 . . Communications Jammed . | . . . . Distress Signals . | . . . . Times Spotted 44 | 8 28 . 8 Peak Tracking Total 9 | 3 4 . 9 Tactical Retreats . | . . . . Traps | -11 -10 -10 -10 ------- Run | Scr Mat Min Exi Traps Triggered 1 | . 1 . . Indirectly . | . . . . Trap Hack Attempts . | . . . . Triggered . | . . . . Disarmed . | . . . . Reprogrammed . | . . . . Reused . | . . . . Traps Extracted . | . . . . Installed . | . . . . Triggered . | . . . . Machines | -11 -10 -10 -10 ---------- Run | Scr Mat Min Exi Machines Disabled 1 | . . . 1 Max in Single Turn 1 | . . . 1 Machines Sabotaged . | . . . . Garrisons Compromised . | . . . . Overloaded Fab Kills . | . . . . Fab Network Shutdowns . | . . . . Hacking | -11 -10 -10 -10 --------- Run | Scr Mat Min Exi Machines Accessed 13 | . 10 . 3 Terminals 7 | . 7 . . Fabricators . | . . . . Repair Stations 1 | . 1 . . Recycling Units 2 | . 2 . . Scanalyzers . | . . . . Garrison Access . | . . . . Total Hacks 68 | . 59 . 9 Successful 51 | . 42 . 9 Failed 17 | . 17 . . Catastrophic 1 | . 1 . . Database Lockouts . | . . . . Manual 41 | . 40 . 1 Terminals 42 | . 42 . . Fabricators . | . . . . Repair Stations 10 | . 10 . . Recycling Units 7 | . 7 . . Scanalyzers . | . . . . Garrison Access . | . . . . Terminal Hacks 24 | . 15 . 9 Record 8 | . . . 8 Robot Schematic 1 | . 1 . . Robot Analysis 6 | . 6 . . Prototype ID Bank 1 | . 1 . . Level Access Points 1 | . 1 . . Branch Access Points 1 | . 1 . . Terminal Index 2 | . 2 . . Locate Traps 1 | . 1 . . Hauler Manifests 1 | . 1 . . Zone Layout 1 | . 1 . . EX-Prototype ID Bank 1 | . . . 1 Fabricator Hacks . | . . . . Repair Station Hacks 10 | . 10 . . Scan Component 5 | . 5 . . Repair 5 | . 5 . . Recycling Unit Hacks 3 | . 3 . . Report Inventory 2 | . 2 . . Retrieve Components 1 | . 1 . . Scanalyzer . | . . . . Garrison Access Hacks . | . . . . Unauthorized Hacks 14 | . 14 . . Terminals 12 | . 12 . . Track 4 | . 4 . . Botnet 6 | . 6 . . Operators 2 | . 2 . . Fabricators . | . . . . Repair Stations . | . . . . Recycling Units 2 | . 2 . . Tunnel 2 | . 2 . . Scanalyzers . | . . . . Garrison Access . | . . . . Data Cores Recovered . | . . . . Used . | . . . . Hacking Detections 9 | . 9 . . Full Trace Events 2 | . 2 . . Feedback Events . | . . . . Feedback Blocked . | . . . . Robot Schematics Acquired 1 | . 1 . . Robots Built . | . . . . Matter . | . . . . Time . | . . . . Total Robot Build Rating . | . . . . Part Schematics Acquired . | . . . . Parts Built . | . . . . Matter . | . . . . Time . | . . . . Total Part Build Rating . | . . . . Parts Repaired 5 | . 5 . . Time 154 | . 154 . . Parts Recycled . | . . . . Recycled Matter . | . . . . Retrieved Matter . | . . . . Retrieved Components 10 | . 10 . . Parts Scanalyzed . | . . . . Part Schematics Acquired . | . . . . Parts Damaged . | . . . . Bothacking | -11 -10 -10 -10 ------------ Run | Scr Mat Min Exi Used RIF Installer . | . . . . Robots Hacked 4 | . . . 4 Non-combat 3 | . . . 3 Combat 1 | . . . 1 Robot Hacks Applied 4 | . . . 4 parse_system 4 | . . . 4 Relay Couplers Released . | . . . . Robots Rewired . | . . . . Allies Hacked . | . . . . Hacks Repelled . | . . . . Allies | -11 -10 -10 -10 -------- Run | Scr Mat Min Exi Total Allies . | . . . . Largest Group . | . . . . Highest-Rated Group . | . . . . Highest-Rated Ally . | . . . . Total Orders . | . . . . Ally Attacks . | . . . . Total Damage . | . . . . Kills . | . . . . Allies Corrupted . | . . . . Allies Melted . | . . . . Intel | -11 -10 -10 -10 ------- Run | Scr Mat Min Exi Robot Analysis Total 6 | . 6 . . Derelict Logs Recovered 2 | . . 2 . Drone Launches . | . . . . Drone Recoveries . | . . . . Exploration | -11 -10 -10 -10 ------------- Run | Scr Mat Min Exi Turns Passed 6523 | 3094 1093 839 1497 Spaces Moved 3054 | 373 868 562 1251 Core 7 | 7 . . . Treads 857 | 345 . 473 39 Legs . | . . . . Wheels . | . . . . Hover 2190 | 21 868 89 1212 Flight . | . . . . Fastest Speed 50 | 50 66 66 100 Average Speed 107 | 154 69 145 101 Slowest Speed 160 | 160 100 160 160 Overloaded Moves . | . . . . Propulsion Burnouts . | . . . . Robots Hopped . | . . . . Cave-ins Triggered . | . . . . Exploration Rate (%) 80 | 34 97 99 90 Regions Visited 3 Branch Regions 2 Pre-discovered Areas 5 | . 2 2 1 Known Exits Taken 1 | . 1 . . Unknown Exits Taken 2 | 1 . 1 . Scrap Searched 3 | . . 3 . Spaces Dug . | . . . . Terrain Destroyed 13 | . 13 . . Melee . | . . . . Projectile . | . . . . AOE 13 | . 13 . . Actions | -11 -10 -10 -10 --------- Run | Scr Mat Min Exi Total 6011 | 2829 1220 586 1376 Wait 2655 | 2407 217 13 18 Move 3051 | 372 867 561 1251 Hop . | . . . . Pick Up 30 | 3 4 1 22 Fast Attach 21 | 7 12 . 2 Attach 1 | . 1 . . Detach . | . . . . Swap 12 | 1 5 3 3 Drop 39 | 2 12 2 23 Fire 160 | 32 75 . 53 Melee 4 | . . . 4 Ram . | . . . . Kick . | . . . . Crush . | . . . . Escape Stasis . | . . . . Rewire . | . . . . Trap . | . . . . Miscellaneous 38 | 5 27 6 . Route ------- -11/Scrapyard -10/Materials (discovered 5 exits: *Mat x3 / *Min x2) -10/Mines (discovered 3 exits: *Mat x2 / *Exi) -10/Exiles (discovered 2 exits: [*Min x2]) History --------- Turn | Location | Event 3 | -11/Scrapyard | Discovered new exit (range 15) 4 | -11/Scrapyard | Upgraded with Propulsion slot (x1) 4 | -11/Scrapyard | Upgraded with Utility slot (x1) 4 | -11/Scrapyard | Upgraded with Weapon slot (x1) 2526 | -11/Scrapyard | Assembled infested the area 2682 | -11/Scrapyard | Core integrity fell below 50% 3095 | -11/Scrapyard | Entered Materials 3096 | -10/Materials | Build established: Mutant 3196 | -10/Materials | Discovered new exit (range 15) 3232 | -10/Materials | Repaired EM Pulse Gun 3275 | -10/Materials | Discovered new exit (range 14) 3290 | -10/Materials | Identified exit to Mines 3351 | -10/Materials | Discovered new exit (range 16) 3378 | -10/Materials | Reached level 2 3450 | -10/Materials | Destroyed 8 combat bots 3579 | -10/Materials | Identified exit to Materials 3607 | -10/Materials | Upgraded with Utility slot (x1) 3667 | -10/Materials | Repaired Hover Unit 3719 | -10/Materials | Repaired Cmb. Airjet 3877 | -10/Materials | Reached level 3 3951 | -10/Materials | Upgraded with Utility slot (x1) 4024 | -10/Materials | Build established: Scavenger-Mutant 4126 | -10/Materials | Repaired Lgt. Armor Plating 4153 | -10/Materials | Repaired Lgt. Armor Plating 4188 | -10/Materials | Entered Mines 4235 | -10/Mines | Met a Derelict bent on vengeance 4244 | -10/Mines | Discovered exit to Materials (range 13) 4252 | -10/Mines | Found a damaged Exp. Sensor Array with a note attached 4256 | -10/Mines | Found Prototype Device 4257 | -10/Mines | Identified Exp. Sensor Array 4544 | -10/Mines | Build established: Skirmisher 4701 | -10/Mines | Learned Materials stockpile data 4757 | -10/Mines | Discovered exit to Materials (range 12) 4850 | -10/Mines | Learned location of Mines (-9) 4862 | -10/Mines | Learned location of Storage (-9) 5021 | -10/Mines | Deemed a non-threat by the Exiles lab entrance 5021 | -10/Mines | Discovered new exit (range 5) 5027 | -10/Mines | Entered Exiles 5040 | -10/Exiles | Discovered new exit (range 15) 5092 | -10/Exiles | Met 8R-AWN 5106 | -10/Exiles | Met EX-HEX 5142 | -10/Exiles | Met EX-DEC 5170 | -10/Exiles | Learned location of Zion (-7) 5190 | -10/Exiles | Met EX-BIN 5337 | -10/Exiles | Build established: Scout 5420 | -10/Exiles | Aligned with FarCom system 5421 | -10/Exiles | Given EX-Vault access code 5447 | -10/Exiles | Opened EX-Vault 5455 | -10/Exiles | Found Field Lobotomy Kit 5458 | -10/Exiles | Found Potential Leg 5481 | -10/Exiles | Warned to stay clear of 0b10 Research branches 5657 | -10/Exiles | Discovered new exit (range 12) 5840 | -10/Exiles | Found Potential Leg 5843 | -10/Exiles | Found PSU Rigger 5966 | -10/Exiles | Visited The Gauntlet 6349 | -10/Exiles | Attacked by the Exiles 6446 | -10/Exiles | Destroyed 7 combat bots 6488 | -10/Exiles | Core integrity fell below 20% 6524 | -10/Exiles | Destroyed by 8R-AWN with 8R-AWN's Boregun Last Messages --------------- 06468_ HV Slug penetrates Wall. 06470_ Penetrated by HV Slug. 06470_ HV Slug penetrates Wall. 06470_ Penetrated by HV Slug. 06470_ HV Slug penetrates Wall. 06474_ Penetrated by HV Slug. 06488_ Destroyed 8R-AWN's Armor/TH. 06490_ HV Slug penetrates Wall. 06490_ HV Slug penetrates Earth. 06495_ Penetrated by HV Slug. 06495_ HV Slug penetrates Earth. 06495_ HV Slug penetrates Wall. 06499_ Penetrated by HV Slug. 06499_ HV Slug penetrates Wall. 06503_ Penetrated by HV Slug. 06507_ Critical hit. 06507_ Lgt. Nuclear Core destroyed. 06507_ Penetrated by HV Slug. 06520_ HV Slug penetrates Earth. 06524_ Penetrated by HV Slug. Map ----- +----------------------------------------------------+ | | | | | | | | | | | | | | | | | | | | | | | ???????##?#?##############?##########????????????? | | ???????????###### #?##########?#???????????? | | ??????#?######### #??########?##???????????? | | ?????#??###?#?### #############??#?????????? | | ????????####?#### /X##############?#?????????? | | ????#?############ ###########?###???????????? | | ???????########?#X #############?#?#?????????? | | ???????#####?#?### !|!#################?????????? | | ???????########### ##########?########???????? | | ??????#####?###### ###################???????? | | ???#????########## ##""""""##########????????? | | ???????########### ## """######??#?#???????? | | ????#####?######## %%%% X""########?###??????? | | ?????###?##?###### ##g ="""#########?#???????? | | ??????##?######### #;@ """#########?##??????? | | ??????#?##""""""?# #;;##;###########?????????? | | ???#?##?##"""" ## # ############??#???????? | | ????#?####""X" ## ###########???###??????? | | ?????#??##" # ############???#???????? | | ??????#??#" ## # ##?#########?#?????????? | | ????#?####""""""## ##;##########?###?????????? | | ???????#?##"###### ##;"""""""##?#????????????? | | ?????##? "###### ##;"""""""###?#??#????????? | | ?????###"?? ###### ##;"""""""###?##????#?????? | | ?????#??""" ###### ##;"" """"######??????????? | | ????##?#""" #?###" """"#####?#???#?????? | | ??????#?##?######" """###?????#???????? | | ?????####?#######" """##?#?#??????????? | | ??#?#?###########" """##??????????????? | | ??######?##?###?#" """## "??#?#???????? | | #? """#########" """## "????????????? | | ?#"" """########## """"""?? ?#????????? | | #?"" ########## """####??#?????????? | | #?"" ####?#??##" "X" """""?? ???#???????? | | ##"" "##########" """ #?""?##???#?????? | | ?# ""##?#######" """""""""# "?"??#?#??????? | | ?#"" ""###?######" ########### ""??#?#???????? | | #?## ###########"" ################??###?###?? | | #### ##########"" ############?#####??####?## | +----------------------------------------------------+ Best States ------------- Heat Dissipation 47 Energy Generation 14 Energy Capacity 250 Matter Stores 300 Matter Capacity 300 Sight Range 17 Robot Scan Range 30 Terrain Scan Range 16 Terrain Scan Density 110 Armor Coverage 300 Evasion (%) 51 Recoil Reduction 2 Offensive Hacking 5 Defensive Hacking 5 Item Schematics ----------------- None Robot Schematics ------------------ O-16 Technician | -10/Materials | Hacked Fabricated ------------ Nothing Alien Tech Used ----------------- None Achievements -------------- None Challenges ------------ None RPGLIKE | -11 -10 -10 -10 --------- Run | Scr Mat Min Exi Levels Raised 2 | . 2 . . XP Earned 7104 | 3000 3254 500 350 XP Spent 5955 | 2800 2770 . 385 Upgrades 21 | 9 5 . 7 Propulsion Slot 1 | 1 . . . Utility Slot 3 | 1 2 . . Weapon Slot 1 | 1 . . . Core Integrity 7 | . . . 7 Heat Dissipation 2 | . 2 . . Inventory Capacity 3 | 2 1 . . Sight Range 1 | 1 . . . Terrain Scan Density 1 | 1 . . . Hack Attack % 1 | 1 . . . Hack Defense % 1 | 1 . . . Protomatter Created 274 | 42 198 . 34 Integrity Restored 821 | 87 591 143 . Core 798 | 87 591 120 . Parts 23 | . . 23 . Protomatter Decayed 73 | 39 . . 34 Game ------ Seed LightpackVisualFrame Manual? 0 Play Time 00:34:28 Cumulative 217.5 hours Start 2020.09.11 @ 18:56:07 End 2020.09.11 @ 19:34:20 Sessions 1 Manual Loads 0 Difficulty Rogue Special Mode Winter2019/RPGLIKE Game No. 91 Rogue 91 Adventurer 0 Explorer 0 Win Type - Total 3 Types 2/0/0/1/0/0/0 Lore% 84 Gallery% 80 Achievement% 68 Wizard Run 0 Options --------- ASCII 0 Keyboard 0 Movement Numpad Keybinds 0 Fullscreen 1 Font 18/SmallcapsGlow Map View 76x50 Tactical HUD 1 Map Filters NONE Filters NONE Steam 1 RUN: e7121da6-d475-4e71-b48d-88fd54f28513